fUST/lending_fUST_20250722
["ID","MTS","AMOUNT","RATE_DAILY","PERIOD"]
[373881143,1753137045441,-460.0,0.00017895,2]
[373881145,1753137045450,-460.0,0.00017895,2]
[373881147,1753137045459,-460.0,0.00017895,2]
[373881149,1753137045468,-460.0,0.00017895,2]
[373881151,1753137045477,-460.0,0.00017895,2]
[373881153,1753137045486,-460.0,0.00017895,2]
[373881155,1753137045495,-460.0,0.00017895,2]
[373881157,1753137045505,-460.0,0.00017895,2]
[373881159,1753137045514,-460.0,0.00017895,2]
[373881161,1753137045524,-912.64,0.00017895,2]
[373881163,1753137045533,-538.44,0.00017895,2]
[373881165,1753137045543,-460.0,0.00017895,2]
[373881167,1753137045552,-460.0,0.00017895,2]
[373881169,1753137045561,-460.0,0.00017895,2]
[373881171,1753137045570,-460.0,0.00017895,2]
[373881173,1753137045579,-460.0,0.00017895,2]
[373881175,1753137045588,-460.0,0.00017895,2]
[373881177,1753137045598,-460.0,0.00017895,2]
[373881179,1753137045607,-460.0,0.00017895,2]
[373881181,1753137045618,-863.44,0.00017895,2]
[373881183,1753137045628,-460.0,0.00017895,2]
[373881185,1753137045637,-460.0,0.00017895,2]
[373881187,1753137045647,-460.0,0.00017895,2]
[373881189,1753137045656,-460.0,0.00017895,2]
[373881191,1753137045666,-460.0,0.00017895,2]
[373881193,1753137045675,-460.0,0.00017895,2]
[373881195,1753137045684,-460.0,0.00017895,2]
[373881197,1753137045693,-460.0,0.00017895,2]
[373881199,1753137045702,-500.0,0.00017895,2]
[373881201,1753137045711,-500.0,0.00017895,2]
[373881203,1753137045721,-460.0,0.00017895,2]
[373881205,1753137045730,-460.0,0.00017895,2]
[373881207,1753137045740,-460.0,0.00017895,2]
[373881209,1753137045750,-1035.44,0.00017895,2]
[373881211,1753137045761,-460.0,0.00017895,2]
[373881212,1753137045770,-460.0,0.00017895,2]
[373881214,1753137045779,-460.0,0.00017895,2]
[373881216,1753137045788,-460.0,0.00017895,2]
[373881218,1753137045798,-460.0,0.00017895,2]
[373881220,1753137045807,-460.0,0.00017895,2]
[373881222,1753137045816,-460.0,0.00017895,2]
[373881224,1753137045826,-460.0,0.00017895,2]
[373881226,1753137045835,-460.0,0.00017895,2]
[373881228,1753137045844,-461.98714617,0.00017895,2]
[373881230,1753137045853,-500.0,0.00017895,2]
[373881232,1753137045863,-500.0,0.00017895,2]
[373881233,1753137045872,-460.0,0.00017895,2]
[373881234,1753137045881,-460.0,0.00017895,2]
[373881235,1753137045890,-460.0,0.00017895,2]
[373881236,1753137045899,-462.34051798,0.00017895,2]
[373881237,1753137045908,-463.47430099,0.00017895,2]
[373881238,1753137045917,-460.0,0.00017895,2]
[373881239,1753137045926,-554.03,0.00017895,2]
[373881240,1753137045935,-460.0,0.00017895,2]
[373881241,1753137045944,-460.0,0.00017895,2]
[373881242,1753137045953,-286.79657035,0.00017895,2]
[373881243,1753137045962,-460.0,0.00017895,2]
[373881244,1753137045972,-460.0,0.00017895,2]
[373881245,1753137045981,-460.0,0.00017895,2]
[373881246,1753137045990,-460.0,0.00017895,2]
[373881247,1753137045999,-460.0,0.00017895,2]
[373881248,1753137046008,-500.0,0.00017895,2]
[373881250,1753137046018,-7737.22757384,0.000179,2]
[373881252,1753137046028,-35608.12106569,0.00018,2]
[373881254,1753137046037,-9345.59431155,0.00018,2]
[373881256,1753137046046,-10515.68311182,0.00018,2]
[373881258,1753137046055,-7737.22757373,0.00018141,2]
[373881260,1753137046064,-1722.39624016,0.00018157,2]
[373881262,1753137046074,-460.0,0.00018165,2]
[373881265,1753137046094,-460.0,0.00018165,2]
[373881267,1753137046103,-460.0,0.00018165,2]
[373881269,1753137046113,-2192.93,0.00018165,2]
[373881271,1753137046123,-460.0,0.00018165,2]
[373881273,1753137046136,-460.0,0.00018165,2]
[373881275,1753137046145,-314.9923924,0.00018165,2]
[373881277,1753137046155,-460.0,0.00018165,2]
[373881279,1753137046165,-460.0,0.00018166,2]
[373881281,1753137046175,-460.0,0.00018166,2]
[373881283,1753137046185,-460.0,0.00018166,2]
[373881285,1753137046194,-4236.04,0.00018166,2]
[373881287,1753137046204,-759.43,0.00018166,2]
[373881289,1753137046213,-460.68,0.00018166,2]
[373881291,1753137046223,-3013.98,0.00018166,2]
[373881294,1753137046233,-460.0,0.00018166,2]
[373881308,1753137046348,-460.0,0.00018166,2]
[373881310,1753137046358,-1663.93,0.00018166,2]
[373881312,1753137046367,-582.74,0.00018166,2]
[373881314,1753137046376,-460.0,0.00018166,2]
[373881316,1753137046385,-582.26,0.00018166,2]
[373881318,1753137046394,-460.0,0.00018167,2]
[373881320,1753137046403,-460.0,0.00018167,2]
[373881322,1753137046412,-463.88303884,0.00018167,2]
[373881324,1753137046421,-460.0,0.00018167,2]
[373881327,1753137046431,-460.0,0.00018167,2]
[373881330,1753137046440,-466.90820524,0.00018167,2]
[373881333,1753137046449,-460.0,0.00018167,2]
[373881335,1753137046459,-460.0,0.00018167,2]
[373881337,1753137046467,-460.0,0.00018167,2]
[373881339,1753137046477,-460.0,0.00018167,2]
[373881341,1753137046487,-460.0,0.00018167,2]
[373881343,1753137046496,-460.0,0.00018167,2]
[373881345,1753137046506,-460.0,0.00018167,2]
[373881347,1753137046515,-460.0,0.00018167,2]
[373881349,1753137046525,-460.0,0.00018167,2]
[373881351,1753137046534,-460.0,0.00018167,2]
[373881353,1753137046543,-491.11716418,0.00018167,2]
[373881355,1753137046552,-460.0,0.00018167,2]
[373881357,1753137046562,-460.0,0.00018167,2]
[373881359,1753137046571,-164.77970811,0.00018167,2]
[373881361,1753137046580,-252.86439887,0.00018167,2]
[373881363,1753137046590,-460.0,0.00018167,2]
[373881365,1753137046599,-460.0,0.00018167,2]
[373881367,1753137046608,-460.0,0.00018167,2]
[373881369,1753137046618,-460.0,0.00018167,2]
[373881371,1753137046627,-460.0,0.00018167,2]
[373881373,1753137046636,-460.0,0.00018167,2]
[373881375,1753137046646,-460.0,0.00018167,2]
[373881377,1753137046655,-460.0,0.00018167,2]
[373881379,1753137046668,-460.0,0.00018167,2]
[373881381,1753137046678,-460.0,0.00018167,2]
[373881383,1753137046687,-460.0,0.00018167,2]
[373881385,1753137046697,-460.0,0.00018167,2]
[373881387,1753137046708,-460.0,0.00018167,2]
[373881389,1753137046718,-591.79750991,0.00018167,2]
[373881391,1753137046728,-460.0,0.00018167,2]
[373881393,1753137046737,-460.0,0.00018167,2]
[373881395,1753137046748,-460.0,0.00018167,2]
[373881397,1753137046758,-460.0,0.00018167,2]
[373881399,1753137046767,-460.0,0.00018167,2]
[373881402,1753137046777,-460.0,0.00018167,2]
[373881404,1753137046787,-460.0,0.00018167,2]
[373881406,1753137046796,-460.0,0.00018167,2]
[373881408,1753137046806,-460.0,0.00018167,2]
[373881410,1753137046815,-466.73183842,0.00018167,2]
[373881412,1753137046825,-460.0,0.00018167,2]
[373881414,1753137046834,-460.0,0.00018167,2]
[373881415,1753137046843,-462.88119923,0.00018167,2]
[373881418,1753137046853,-460.0,0.00018167,2]
[373881419,1753137046863,-460.0,0.00018167,2]
[373881422,1753137046872,-460.0,0.00018167,2]
[373881423,1753137046883,-489.92,0.00018167,2]
[373881426,1753137046893,-460.0,0.00018167,2]
[373881427,1753137046902,-460.0,0.00018167,2]
[373881430,1753137046912,-462.76559744,0.00018167,2]
[373881432,1753137046922,-461.95446457,0.00018167,2]
[373881434,1753137046934,-872.9,0.00018167,2]
[373881436,1753137046944,-460.0,0.00018167,2]
[373881438,1753137046953,-871.52,0.00018167,2]
[373881440,1753137046964,-424.94142798,0.00018167,2]
[373881442,1753137046973,-460.0,0.00018167,2]
[373881444,1753137046983,-623.87,0.00018167,2]
[373881446,1753137046992,-460.0,0.00018167,2]
[373881448,1753137047002,-460.0,0.00018167,2]
[373881450,1753137047012,-462.02190496,0.00018167,2]
[373881452,1753137047021,-1172.83,0.00018167,2]
[373881454,1753137047031,-460.0,0.00018167,2]
[373881456,1753137047040,-460.0,0.00018167,2]
[373881458,1753137047049,-460.0,0.00018167,2]
[373881460,1753137047058,-199.97169175,0.00018167,2]
[373881462,1753137047067,-460.0,0.00018167,2]
[373881464,1753137047077,-460.0,0.00018167,2]
[373881466,1753137047086,-413.32082297,0.00018167,2]
[373881468,1753137047095,-460.0,0.00018167,2]
[373881469,1753137047104,-460.0,0.00018167,2]
[373881471,1753137047113,-460.0,0.00018167,2]
[373881474,1753137047123,-545.37,0.00018167,2]
[373881477,1753137047134,-460.0,0.00018167,2]
[373881482,1753137047144,-151.0,0.00018167,2]
[373881483,1753137047154,-460.0,0.00018167,2]
[373881485,1753137047163,-573.41698392,0.00018167,2]
[373881487,1753137047172,-460.0,0.00018167,2]
[373881489,1753137047183,-216.01658458,0.00018167,2]
[373881491,1753137047193,-461.22566897,0.00018167,2]
[373881493,1753137047202,-460.0,0.00018167,2]
[373881496,1753137047214,-460.0,0.00018167,2]
[373881498,1753137047223,-460.0,0.00018167,2]
[373881500,1753137047233,-916.28,0.00018167,2]
[373881502,1753137047243,-216.14992921,0.00018167,2]
[373881504,1753137047252,-460.0,0.00018168,2]
[373881506,1753137047261,-460.0,0.00018168,2]
[373881508,1753137047271,-460.0,0.00018168,2]
[373881509,1753137047280,-460.0,0.00018168,2]
[373881512,1753137047290,-460.0,0.00018168,2]
[373881514,1753137047302,-452.02443388,0.00018168,2]
[373881516,1753137047311,-460.0,0.00018168,2]
[373881518,1753137047321,-460.0,0.00018168,2]
[373881520,1753137047331,-460.0,0.00018168,2]
[373881521,1753137047340,-460.0,0.00018168,2]
[373881522,1753137047350,-460.0,0.00018168,2]
[373881523,1753137047359,-460.0,0.00018168,2]
[373881524,1753137047369,-460.0,0.00018168,2]
[373881525,1753137047378,-465.19038475,0.00018168,2]
[373881526,1753137047387,-460.0,0.00018168,2]
[373881527,1753137047397,-460.0,0.00018168,2]
[373881528,1753137047406,-5786.71,0.00018168,2]
[373881529,1753137047417,-460.0,0.00018168,2]
[373881530,1753137047427,-460.0,0.00018168,2]
[373881531,1753137047436,-472.66320675,0.00018168,2]
[373881532,1753137047445,-460.0,0.00018168,2]
[373881533,1753137047455,-460.0,0.00018168,2]
[373881534,1753137047464,-460.0,0.00018168,2]
[373881535,1753137047549,-460.0,0.00018168,2]
[373881536,1753137047558,-460.0,0.00018168,2]
[373881537,1753137047570,-460.0,0.00018168,2]
[373881538,1753137047579,-2859.32,0.00018168,2]
[373881539,1753137047588,-460.0,0.00018168,2]
[373881540,1753137047597,-460.0,0.00018168,2]
[373881541,1753137047606,-460.0,0.00018168,2]
[373881542,1753137047615,-460.0,0.00018168,2]
[373881543,1753137047625,-460.0,0.00018168,2]
[373881544,1753137047634,-460.0,0.00018168,2]
[373881545,1753137047643,-460.0,0.00018168,2]
[373881546,1753137047652,-460.0,0.00018168,2]
[373881547,1753137047661,-460.0,0.00018168,2]
[373881548,1753137047670,-460.0,0.00018168,2]
[373881549,1753137047679,-460.0,0.00018168,2]
[373881550,1753137047688,-474.73,0.00018168,2]
[373881551,1753137047697,-460.0,0.00018168,2]
[373881552,1753137047706,-460.0,0.00018168,2]
[373881553,1753137047715,-1497.69,0.00018168,2]
[373881554,1753137047724,-460.0,0.00018168,2]
[373881555,1753137047733,-592.99801124,0.00018168,2]
[373881556,1753137047742,-460.0,0.00018168,2]
[373881557,1753137047752,-460.0,0.00018168,2]
[373881558,1753137047762,-462.02167208,0.00018168,2]
[373881560,1753137047771,-460.0,0.00018168,2]
[373881562,1753137047780,-460.0,0.00018168,2]
[373881563,1753137047790,-460.0,0.00018168,2]
[373881564,1753137047799,-460.0,0.00018168,2]
[373881565,1753137047808,-460.0,0.00018168,2]
[373881567,1753137047817,-521.72,0.00018168,2]
[373881569,1753137047826,-460.0,0.00018168,2]
[373881571,1753137047835,-1954.89,0.00018168,2]
[373881573,1753137047844,-460.0,0.00018168,2]
[373881576,1753137047855,-460.0,0.00018168,2]
[373881577,1753137047864,-460.0,0.00018168,2]
[373881579,1753137047873,-687.12,0.00018168,2]
[373881582,1753137047883,-463.25031618,0.00018168,2]
[373881584,1753137047893,-460.0,0.00018168,2]
[373881585,1753137047902,-460.0,0.00018168,2]
[373881588,1753137047912,-460.0,0.00018168,2]
[373881590,1753137047921,-1029.06,0.00018168,2]
[373881591,1753137047931,-460.0,0.00018168,2]
[373881593,1753137047940,-1631.85,0.00018168,2]
[373881594,1753137047949,-806.27,0.00018168,2]
[373881595,1753137047959,-460.0,0.00018168,2]
[373881596,1753137047968,-430.60370641,0.00018168,2]
[373881597,1753137047978,-721.77,0.00018168,2]
[373881598,1753137047987,-460.0,0.00018168,2]
[373881599,1753137047996,-460.0,0.00018168,2]
[373881600,1753137048005,-1691.04,0.00018168,2]
[373881601,1753137048015,-460.0,0.00018168,2]
[373881602,1753137048025,-151.0,0.00018168,2]
[373881603,1753137048034,-431.63689499,0.00018168,2]
[373881604,1753137048044,-151.0,0.00018168,2]
[373881605,1753137048053,-460.0,0.00018168,2]
[373881606,1753137048063,-460.0,0.00018168,2]
[373881607,1753137048073,-460.0,0.00018168,2]
[373881608,1753137048082,-460.0,0.00018169,2]
[373881609,1753137048092,-460.0,0.00018169,2]
[373881610,1753137048102,-460.0,0.00018169,2]
[373881611,1753137048111,-460.0,0.00018169,2]
[373881612,1753137048121,-460.0,0.00018169,2]
[373881613,1753137048132,-586.43556117,0.00018169,2]
[373881614,1753137048142,-460.0,0.00018169,2]
[373881615,1753137048151,-460.0,0.00018169,2]
[373881616,1753137048160,-912.64,0.00018169,2]
[373881617,1753137048169,-538.44,0.00018169,2]
[373881618,1753137048190,-460.0,0.00018169,2]
[373881619,1753137048200,-460.0,0.00018169,2]
[373881620,1753137048210,-517.32096307,0.00018169,2]
[373881621,1753137048220,-460.0,0.00018169,2]
[373881622,1753137048230,-460.0,0.00018169,2]
[373881623,1753137048240,-863.44,0.00018169,2]
[373881624,1753137048250,-460.0,0.00018169,2]
[373881625,1753137048260,-460.0,0.00018169,2]
[373881626,1753137048269,-460.0,0.00018169,2]
[373881628,1753137048279,-460.0,0.00018169,2]
[373881630,1753137048288,-460.0,0.00018169,2]
[373881632,1753137048298,-460.0,0.00018169,2]
[373881634,1753137048308,-460.0,0.00018169,2]
[373881636,1753137048318,-460.0,0.00018169,2]
[373881638,1753137048328,-460.0,0.00018169,2]
[373881641,1753137048337,-1035.44,0.00018169,2]
[373881643,1753137048349,-460.0,0.00018169,2]
[373881645,1753137048359,-460.0,0.00018169,2]
[373881647,1753137048368,-460.0,0.00018169,2]
[373881649,1753137048378,-460.0,0.00018169,2]
[373881651,1753137048388,-460.0,0.00018169,2]
[373881653,1753137048397,-460.0,0.00018169,2]
[373881655,1753137048406,-590.58,0.00018169,2]
[373881657,1753137048416,-460.0,0.00018169,2]
[373881659,1753137048426,-460.0,0.00018169,2]
[373881661,1753137048436,-574.45691817,0.00018169,2]
[373881663,1753137048446,-460.84,0.00018169,2]
[373881665,1753137048455,-460.0,0.00018169,2]
[373881667,1753137048465,-454.29247346,0.00018173,2]
[373881669,1753137048475,-7737.22757373,0.00018383,2]
[373881671,1753137048484,-151.0,0.00018383,2]
[373881673,1753137048494,-500.0,0.00018421,2]
[373881675,1753137048503,-1000.0,0.00018421,2]
[373881677,1753137048513,-500.0,0.00018421,2]
[373881679,1753137048522,-283.49767731,0.00018421,2]
[373881681,1753137048532,-1000.0,0.00018421,2]
[373881683,1753137048542,-1000.0,0.00018421,2]
[373881685,1753137048552,-655.4520006,0.00018421,2]
[373881687,1753137048561,-1000.0,0.00018421,2]
[373881689,1753137048570,-460.0,0.00018439,2]
[373881702,1753137048677,-460.0,0.00018439,2]
[373881704,1753137048687,-460.0,0.00018439,2]
[373881706,1753137048696,-2192.93,0.00018439,2]
[373881708,1753137048706,-203.52949707,0.00018439,2]
[373881710,1753137048723,-256.47050293,0.00018439,2]
[373881712,1753137048733,-162.01459955,0.00018439,2]
[373881714,1753137048742,-460.0,0.0001844,2]
[373881716,1753137048752,-460.0,0.0001844,2]
[373881718,1753137048761,-2705.78015412,0.0001844,2]
[373881721,1753137048773,-1530.25984588,0.0001844,2]
[373881722,1753137048782,-759.43,0.0001844,2]
[373881724,1753137048792,-460.68,0.0001844,2]
[373881726,1753137048801,-3013.98,0.0001844,2]
[373881728,1753137048810,-460.0,0.0001844,2]
[373881730,1753137048820,-460.0,0.0001844,2]
[373881732,1753137048829,-1663.93,0.0001844,2]
[373881734,1753137048839,-582.74,0.0001844,2]
[373881736,1753137048848,-460.0,0.0001844,2]
[373881738,1753137048858,-582.26,0.0001844,2]
[373881740,1753137048867,-460.0,0.00018441,2]
[373881742,1753137048876,-460.0,0.00018441,2]
[373881744,1753137048885,-460.0,0.00018441,2]
[373881746,1753137048895,-460.0,0.00018441,2]
[373881748,1753137048904,-460.0,0.00018441,2]
[373881750,1753137048914,-460.0,0.00018441,2]
[373881752,1753137048923,-460.0,0.00018441,2]
[373881754,1753137048933,-460.0,0.00018441,2]
[373881756,1753137048943,-460.0,0.00018441,2]
[373881758,1753137048952,-460.0,0.00018441,2]
[373881760,1753137048961,-460.0,0.00018441,2]
[373881762,1753137048971,-460.0,0.00018441,2]
[373881764,1753137048981,-460.0,0.00018441,2]
[373881766,1753137048990,-460.0,0.00018441,2]
[373881768,1753137049000,-460.0,0.00018441,2]
[373881770,1753137049010,-460.0,0.00018441,2]
[373881772,1753137049020,-197.35879225,0.00018441,2]
[373881775,1753137049032,-262.64120775,0.00018441,2]
[373881776,1753137049041,-460.0,0.00018441,2]
[373881779,1753137049052,-460.0,0.00018441,2]
[373881781,1753137049062,-460.0,0.00018441,2]
[373881783,1753137049072,-460.0,0.00018441,2]
[373881785,1753137049080,-59.42619388,0.00018441,2]
[373881787,1753137049092,-400.57380612,0.00018441,2]
[373881789,1753137049101,-460.0,0.00018441,2]
[373881791,1753137049110,-460.0,0.00018441,2]
[373881793,1753137049120,-460.0,0.00018441,2]
[373881795,1753137049132,-460.0,0.00018441,2]
[373881797,1753137049143,-489.92,0.00018441,2]
[373881799,1753137049152,-460.0,0.00018441,2]
[373881802,1753137049168,-225.70619388,0.00018441,2]
[373881805,1753137049193,-647.19380612,0.00018441,2]
[373881808,1753137049213,-31.97619388,0.00018441,2]
[373881813,1753137049248,-500.0,0.00018441,2]
[373881815,1753137049269,-339.54380612,0.00018441,2]
[373881817,1753137049288,-623.87,0.00018441,2]
[373881819,1753137049307,-460.0,0.00018441,2]
[373881820,1753137049321,-1172.83,0.00018441,2]
[373881821,1753137049340,-460.0,0.00018441,2]
[373881822,1753137049360,-460.0,0.00018441,2]
[373881823,1753137049378,-460.0,0.00018441,2]
[373881824,1753137049391,-460.0,0.00018441,2]
[373881825,1753137049411,-545.37,0.00018441,2]
[373881826,1753137049425,-460.0,0.00018441,2]
[373881827,1753137049441,-916.28,0.00018441,2]
[373881828,1753137049454,-4459.98986581,0.00018442,2]
[373881829,1753137049469,-460.0,0.00018442,2]
[373881830,1753137049484,-460.0,0.00018442,2]
[373881831,1753137049499,-460.0,0.00018442,2]
[373881832,1753137049513,-427.84210958,0.00018442,2]
[373881833,1753137049528,-460.0,0.00018442,2]
[373881834,1753137049542,-460.0,0.00018442,2]
[373881835,1753137049556,-3076.8520098,0.00018442,2]
[373881836,1753137049593,-2709.8579902,0.00018442,2]
[373881837,1753137049608,-340.2620098,0.00018442,2]
[373881838,1753137049691,-119.7379902,0.00018442,2]
[373881839,1753137049706,-464.66927989,0.00018442,2]
[373881840,1753137049721,-460.0,0.00018442,2]
[373881841,1753137049735,-460.0,0.00018442,2]
[373881842,1753137049750,-2859.32,0.00018442,2]
[373881843,1753137049760,-460.0,0.00018442,2]
[373881844,1753137049769,-460.0,0.00018442,2]
[373881845,1753137049779,-460.0,0.00018442,2]
[373881846,1753137049788,-460.0,0.00018442,2]
[373881847,1753137049798,-474.73,0.00018442,2]
[373881848,1753137049807,-1497.69,0.00018442,2]
[373881850,1753137049816,-459.0121137,0.00018442,2]
[373881852,1753137049826,-460.0,0.00018442,2]
[373881854,1753137049835,-460.0,0.00018442,2]
[373881856,1753137049845,-460.0,0.00018442,2]
[373881858,1753137049854,-152.44081212,0.00018442,2]
[373881860,1753137049866,-307.55918788,0.00018442,2]
[373881874,1753137050035,-521.72,0.00018442,2]
[373881877,1753137050055,-460.0,0.00018442,2]
[373881879,1753137050066,-1954.89,0.00018442,2]
[373881881,1753137050075,-460.0,0.00018442,2]
[373881883,1753137050085,-460.0,0.00018442,2]
[373881885,1753137050095,-687.12,0.00018442,2]
[373881887,1753137050104,-1029.06,0.00018442,2]
[373881889,1753137050114,-1631.85,0.00018442,2]
[373881891,1753137050123,-806.27,0.00018442,2]
[373881893,1753137050135,-460.0,0.00018442,2]
[373881895,1753137050144,-151.0,0.00018442,2]
[373881897,1753137050153,-721.77,0.00018442,2]
[373881899,1753137050163,-460.0,0.00018442,2]
[373881901,1753137050172,-1691.04,0.00018442,2]
[373881903,1753137050182,-460.0,0.00018442,2]
[373881905,1753137050191,-151.0,0.00018442,2]
[373881907,1753137050200,-209.64576,0.00018442,2]
[373881909,1753137050209,-460.0,0.00018442,2]
[373881911,1753137050219,-460.0,0.00018442,2]
[373881913,1753137050228,-460.0,0.00018443,2]
[373881915,1753137050238,-460.0,0.00018443,2]
[373881917,1753137050247,-460.0,0.00018443,2]
[373881919,1753137050256,-460.0,0.00018443,2]
[373881921,1753137050265,-912.64,0.00018443,2]
[373881923,1753137050274,-538.44,0.00018443,2]
[373881925,1753137050283,-460.0,0.00018443,2]
[373881927,1753137050292,-460.0,0.00018443,2]
[373881929,1753137050302,-863.44,0.00018443,2]
[373881931,1753137050311,-460.0,0.00018443,2]
[373881933,1753137050320,-460.0,0.00018443,2]
[373881935,1753137050330,-151.0,0.00018443,2]
[373881937,1753137050339,-151.434926,0.00018443,2]
[373881939,1753137050348,-460.0,0.00018443,2]
[373881941,1753137050358,-460.0,0.00018443,2]
[373881943,1753137050366,-460.0,0.00018443,2]
[373881945,1753137050376,-460.0,0.00018443,2]
[373881947,1753137050385,-460.0,0.00018443,2]
[373881949,1753137050393,-460.0,0.00018443,2]
[373881951,1753137050402,-460.0,0.00018443,2]
[373881953,1753137050411,-1035.44,0.00018443,2]
[373881954,1753137050420,-460.0,0.00018443,2]
[373881955,1753137050429,-460.0,0.00018443,2]
[373881956,1753137050438,-460.0,0.00018443,2]
[373881957,1753137050448,-460.0,0.00018443,2]
[373881958,1753137050457,-460.0,0.00018443,2]
[373881959,1753137050466,-460.0,0.00018443,2]
[373881960,1753137050474,-460.0,0.00018443,2]
[373881961,1753137050484,-460.0,0.00018443,2]
[373881964,1753137050493,-150.0,0.00018451,2]
[373881965,1753137050503,-500.0,0.00018469,2]
[373881967,1753137050512,-1722.39624016,0.00018519,2]
[373881969,1753137050521,-500.0,0.00018595,2]
[373881971,1753137050530,-500.0,0.00018595,2]
[373881973,1753137050540,-500.0,0.00018595,2]
[373881976,1753137050550,-500.0,0.00018595,2]
[373881978,1753137050559,-412.07489324,0.00018595,2]
[373881980,1753137050568,-4876.88088272,0.00018596,2]
[373881982,1753137050580,-1503.14143,0.00018596,2]
[373883083,1753137203662,-8380.849325,0.00016892,2]
[373883084,1753137203684,-150.0,0.00017571,2]
[373883085,1753137203705,-877.150675,0.00017791,2]
[373883087,1753137254049,160.771667,0.00013699,2]
[373883089,1753137277889,-920.0,0.00016892,2]
[373883090,1753137292686,255.0,0.0001675,2]
[373883092,1753137512190,709.384716,0.00016732,2]
[373883094,1753137690392,4619.90447371,0.00016122,2]
[373883095,1753138163115,-375.6838573,0.00016892,2]
[373883096,1753138163136,-335.060553,0.0001691,2]
[373883097,1753138229385,160.771667,0.00013699,2]
[373883131,1753138232164,-167.50850779,0.0001701,2]
[373883133,1753138232173,-150.0,0.00017551,2]
[373883134,1753138232183,-228.99712034,0.00017772,2]
[373883137,1753138232194,-680.37107628,0.00017772,2]
[373883138,1753138232204,-1385.43414204,0.00017791,2]
[373883139,1753138232213,-300.0,0.00017793,2]
[373883140,1753138232224,-300.0,0.00017793,2]
[373883141,1753138232234,-300.0,0.00017793,2]
[373883142,1753138232243,-1200.0,0.00017793,2]
[373883143,1753138232252,-300.0,0.00017793,2]
[373883144,1753138232262,-160.0,0.00017847,2]
[373883145,1753138232271,-299.0,0.0001787,2]
[373883146,1753138232281,-76.39564788,0.00017871,2]
[373883161,1753138232885,-383.60435212,0.00017871,2]
[373883162,1753138232895,-460.0,0.00017871,2]
[373883163,1753138232905,-460.0,0.00017871,2]
[373883164,1753138232915,-460.0,0.00017871,2]
[373883165,1753138232924,-460.0,0.00017871,2]
[373883166,1753138232934,-1000.0,0.00017871,2]
[373883167,1753138232943,-1576.78592256,0.00017871,2]
[373883174,1753138237896,-454.64407744,0.00017871,2]
[373883175,1753138237907,-73.43890745,0.00017871,2]
[373883176,1753138237998,-386.56109255,0.00017871,2]
[373883177,1753138238008,-276.09611264,0.00017871,2]
[373883178,1753138238018,-460.0,0.00017871,2]
[373883179,1753138238027,-177.34279553,0.00017871,2]
[373883180,1753138238039,-282.65720447,0.00017871,2]
[373883181,1753138238048,-460.0,0.00017871,2]
[373883182,1753138238058,-460.0,0.00017871,2]
[373883183,1753138238067,-460.0,0.00017871,2]
[373883184,1753138238077,-460.0,0.00017872,2]
[373883185,1753138238086,-460.0,0.00017872,2]